bitfinex/quotes_SOLUSD_20251116
["timestamp","ask_amount","ask_price","bid_price","bid_amount"]
[1763305308164,7.12859994,140.28,140.23,7.76092324]
[1763305308507,0.7,140.27,140.23,7.76092324]
[1763305308933,7.82812905,140.29,140.24,0.63]
[1763305309127,0.7,140.28,140.22,9.78882769]
[1763305309322,23.3512,140.31,140.23,0.63]
[1763305309523,0.7,140.3,140.23,0.63]
[1763305310115,0.7,140.3,140.24,24.9572162]
[1763305310436,7.8267323,140.32,140.25,9.78882769]
[1763305310617,7.8267323,140.32,140.25,10.41882769]
[1763305310817,7.8267323,140.32,140.26,0.63]
[1763305311243,0.7,140.32,140.26,0.63]
[1763305311813,7.82660361,140.32,140.26,0.63]
[1763305312016,0.7,140.32,140.26,0.63]
[1763305312340,0.7,140.32,140.28,7.12859994]
[1763305312643,0.7,140.34,140.28,24.95009979]
[1763305312825,7.1252058,140.35,140.28,25.58009979]
[1763305313028,0.7,140.34,140.28,25.58009979]
[1763305317426,7.82557218,140.34,140.27,7.12895201]
[1763305317845,0.7,140.33,140.27,7.12895201]
[1763305318750,104.9,140.33,140.27,7.12895201]
[1763305319222,7.82656784,140.32,140.27,7.12895201]
[1763305319746,0.7,140.31,140.27,7.12895201]
[1763305320723,7.82713341,140.31,140.25,29.78115144]
[1763305320926,7.82713341,140.31,140.25,30.41123219]
[1763305321247,0.7,140.3,140.26,0.63]
[1763305322737,30.47893317,140.3,140.19,0.73]
[1763305322940,104.2,140.29,140.2,0.73]
[1763305323136,104.9,140.29,140.21,22.6512]
[1763305323335,0.7,140.28,140.21,22.6512]
[1763305323550,0.7,140.28,140.21,23.2812]
[1763305324143,0.7,140.28,140.21,0.63]
[1763305324731,0.7,140.28,140.22,7.13165026]
[1763305324933,0.7,140.28,140.22,24.96077591]
[1763305325252,104.2,140.34,140.24,9.78882769]
[1763305325456,0.7,140.3,140.24,9.78882769]
[1763305325633,0.7,140.3,140.24,10.41882769]
[1763305326324,0.7,140.3,140.25,7.13012477]
[1763305326532,30.47879271,140.3,140.22,7.76165026]
[1763305326735,30.47879271,140.3,140.22,25.59027581]
[1763305326926,0.7,140.29,140.22,25.59027581]
[1763305328354,0.7,140.29,140.23,0.63]
[1763305328526,0.7,140.33,140.24,32.44002769]
[1763305328726,0.7,140.32,140.24,32.44002769]
[1763305328955,0.7,140.32,140.26,9.78882769]
[1763305329260,0.7,140.32,140.26,10.41882769]
[1763305329633,0.7,140.32,140.27,0.63]
[1763305330043,0.7,140.32,140.28,9.78882769]
[1763305330246,7.12413595,140.37,140.31,7.12707576]
[1763305330450,7.82413595,140.37,140.31,7.12707576]
[1763305330672,0.7,140.36,140.31,7.12707576]
[1763305332360,7.82469986,140.36,140.31,7.12707576]
[1763305332967,0.7,140.35,140.3,17.54630869]
[1763305333347,0.7,140.35,140.3,7.127481]
[1763305333845,7.82532959,140.35,140.3,7.127481]
[1763305334247,0.7,140.34,140.3,7.127481]
[1763305334934,7.12532959,140.35,140.28,7.75852538]
[1763305335346,111.32532959,140.35,140.28,7.75852538]
[1763305335950,111.32532959,140.35,140.28,7.12852538]
[1763305336359,129.13794091,140.35,140.28,7.12852538]
[1763305336676,111.32532959,140.35,140.29,0.71]
[1763305336867,111.99532959,140.35,140.29,10.49882769]
[1763305337544,0.67,140.34,140.29,10.49882769]
[1763305337977,7.79579648,140.34,140.26,7.12924507]
[1763305338141,12.57974982,140.34,140.26,7.12924507]
[1763305338456,0.71,140.33,140.26,7.79924507]
[1763305339043,0.71,140.33,140.27,0.67]
[1763305339251,0.71,140.33,140.27,10.45882769]
[1763305340345,7.8365339,140.33,140.26,17.82404106]
[1763305340548,12.62421377,140.33,140.26,18.49404106]
[1763305340749,0.71,140.32,140.26,18.49404106]
[1763305341348,7.83679411,140.32,140.27,7.12898165]
[1763305341864,0.71,140.31,140.27,7.79898165]
[1763305342569,0.66,140.33,140.28,0.7]
[1763305342766,0.66,140.32,140.28,0.7]
[1763305342946,0.66,140.32,140.27,24.95175202]
[1763305343267,0.66,140.32,140.27,0.7]
[1763305343447,7.7868787,140.32,140.27,7.82868337]
[1763305343847,0.66,140.31,140.27,7.82868337]
[1763305347652,0.66,140.31,140.28,0.68]
[1763305347859,0.66,140.31,140.27,7.80868337]
[1763305348743,7.78708807,140.31,140.25,9.78882769]
[1763305349146,0.67,140.3,140.23,9.78882769]
[1763305349350,5.46500839,140.3,140.23,7.13114169]
[1763305349550,5.46500839,140.3,140.21,32.44002769]
[1763305349551,0.67,140.29,140.21,32.44002769]
[1763305349857,7.12859994,140.28,140.21,0.68]
[1763305350057,0.67,140.27,140.21,23.3312]
[1763305350461,0.67,140.27,140.21,7.81207868]
[1763305350645,5.46602193,140.27,140.21,7.81207868]
[1763305351157,0.67,140.26,140.21,7.81207868]
[1763305351351,0.67,140.26,140.21,7.13207868]
[1763305351852,0.67,140.26,140.22,0.68]
[1763305352054,6.5750962,140.31,140.23,9.78882769]
[1763305352274,0.67,140.3,140.23,9.78882769]
[1763305352583,5.46491115,140.3,140.24,0.68]
[1763305353152,5.46491115,140.3,140.25,7.13012477]
[1763305353153,12.59257641,140.3,140.25,7.13012477]
[1763305353358,0.67,140.29,140.25,7.13012477]
[1763305353551,0.67,140.29,140.25,7.81012477]
[1763305354156,4.79491115,140.3,140.25,24.95543671]
[1763305354356,0.67,140.3,140.26,0.68]
[1763305354568,0.67,140.32,140.26,0.68]
[1763305355495,0.67,140.32,140.27,7.12910814]
[1763305355793,7.7966762,140.32,140.27,7.12910814]
[1763305355968,0.67,140.32,140.27,7.80910814]
[1763305356166,0.67,140.31,140.27,7.80910814]
[1763305356853,4.79335858,140.33,140.28,0.68]
[1763305357066,0.67,140.33,140.28,0.68]
[1763305357465,0.67,140.33,140.29,7.1280918]
[1763305357866,0.67,140.33,140.29,7.8080918]
[1763305358611,0.67,140.33,140.28,10.46882769]
[1763305358612,7.79624647,140.33,140.28,10.46882769]
[1763305358762,7.79624647,140.33,140.27,10.46882769]
[1763305359206,7.79624647,140.33,140.28,0.68]
[1763305359504,7.12624647,140.33,140.28,7.80849997]
[1763305359681,0.67,140.32,140.28,7.80849997]
[1763305359880,0.67,140.32,140.28,0.68]
[1763305360193,0.67,140.32,140.27,16.91783094]
[1763305360499,0.67,140.32,140.27,10.46882769]
[1763305360804,0.67,140.32,140.25,7.12994234]
[1763305360971,5.46306838,140.32,140.25,7.12994234]
[1763305361374,0.67,140.31,140.25,7.80994234]
[1763305361575,7.12758374,140.3,140.25,7.80994234]
[1763305361975,0.67,140.29,140.25,7.80994234]
[1763305363405,111.99708161,140.31,140.26,0.68]
[1763305363768,0.69,140.3,140.27,7.12910814]
[1763305363998,0.69,140.3,140.26,7.80950947]
[1763305367408,7.81766008,140.3,140.26,7.80950947]
[1763305373019,0.69,140.3,140.26,7.80950947]
[1763305375301,7.81762317,140.3,140.26,7.80950947]
[1763305376289,7.84762317,140.3,140.26,7.80950947]
[1763305376489,0.72,140.29,140.26,0.68]
[1763305377001,0.72,140.29,140.26,7.80956996]
[1763305378507,0.72,140.29,140.26,0.68]
[1763305378818,0.72,140.29,140.26,7.80956977]
[1763305378993,0.72,140.29,140.26,7.82956977]
[1763305379191,0.72,140.3,140.26,7.12956977]
[1763305379416,5.52096167,140.3,140.27,0.7]
[1763305379725,0.72,140.3,140.27,0.7]
[1763305380021,104.2,140.31,140.27,0.7]
[1763305380216,0.72,140.3,140.27,0.7]
[1763305380417,104.92,140.31,140.27,7.82867]
[1763305380626,0.72,140.3,140.27,0.7]
[1763305381398,0.72,140.3,140.27,7.82910133]
[1763305381594,0.72,140.3,140.27,0.7]
[1763305382003,0.72,140.3,140.27,7.82908982]
[1763305383244,7.84767646,140.3,140.26,7.12946324]
[1763305383427,7.84767646,140.3,140.26,7.82946324]
[1763305383724,0.72,140.29,140.26,7.12946324]
[1763305384220,0.72,140.29,140.26,7.82946324]
[1763305384915,7.84767646,140.3,140.26,7.82946324]
[1763305385317,0.72,140.29,140.23,9.78882769]
[1763305385524,0.72,140.29,140.23,10.48882769]
[1763305385820,104.92,140.29,140.23,9.78882769]
[1763305386001,4.80307178,140.28,140.2,0.8]
[1763305386207,104.2,140.27,140.2,0.8]
[1763305386416,4.80307178,140.26,140.2,0.8]
[1763305386624,5.52307178,140.26,140.2,0.1]
[1763305386828,0.72,140.25,140.2,0.1]
[1763305387222,7.1306332,140.24,140.2,0.8]
[1763305387428,7.1306332,140.24,140.2,7.93262634]
[1763305387614,0.72,140.23,140.2,7.93262634]
[1763305388222,0.72,140.24,140.2,7.93262634]
[1763305389823,0.72,140.24,140.2,0.1]
[1763305390030,7.85072765,140.24,140.2,0.1]
[1763305390219,7.85072765,140.24,140.2,7.9325954]
[1763305390419,0.72,140.23,140.2,0.8]
[1763305390649,0.72,140.23,140.2,7.93251509]
[1763305392554,7.8513378,140.23,140.2,0.1]
[1763305392922,0.72,140.22,140.2,0.1]
[1763305394751,7.85172784,140.22,140.2,0.1]
[1763305395120,0.67,140.21,140.2,0.1]
[1763305395614,0.67,140.22,140.2,0.1]
[1763305396039,104.2,140.24,140.21,0.7]
[1763305396220,104.87,140.24,140.2,0.1]
[1763305396434,104.2,140.24,140.2,0.8]
[1763305396636,104.2,140.24,140.22,7.13165026]
[1763305397017,104.2,140.24,140.23,0.7]
[1763305397240,0.67,140.27,140.23,0.7]
[1763305397443,4.79183963,140.29,140.23,0.7]
[1763305397654,0.67,140.29,140.24,9.78882769]
[1763305398161,0.67,140.29,140.25,0.7]
[1763305399446,0.67,140.29,140.26,7.12961642]
[1763305399637,7.79811821,140.29,140.25,7.82996845]
[1763305399950,7.79811821,140.29,140.25,7.12996845]
[1763305400150,7.79811821,140.29,140.23,9.78882769]
[1763305400151,0.67,140.28,140.23,9.78882769]
[1763305400327,0.67,140.28,140.23,16.91980152]
[1763305400532,0.67,140.28,140.23,17.61980152]
[1763305400762,0.67,140.28,140.23,16.91980152]
[1763305401059,0.67,140.28,140.23,17.61980152]
[1763305401523,7.79878368,140.28,140.23,17.61980152]
[1763305401729,0.67,140.28,140.24,0.7]
[1763305403170,7.79863239,140.28,140.23,17.61980152]
[1763305403370,7.79863239,140.28,140.23,16.91980152]
[1763305403565,0.67,140.27,140.24,0.7]
[1763305404476,0.67,140.27,140.24,7.83031569]
[1763305404674,0.67,140.27,140.24,7.13031569]
[1763305404883,7.79921386,140.27,140.23,7.13105489]
[1763305405174,0.67,140.27,140.23,7.83105489]
[1763305408783,11.92263307,140.29,140.23,7.13105489]
[1763305408985,0.67,140.28,140.24,7.83013474]
[1763305410384,0.67,140.28,140.25,0.7]
[1763305411783,0.67,140.28,140.25,7.82998053]
[1763305412365,0.67,140.28,140.25,7.12998053]
[1763305412775,111.32771676,140.3,140.25,7.12998053]
[1763305412979,0.67,140.29,140.26,0.7]
[1763305413188,0.67,140.29,140.25,7.12998053]
[1763305413189,0.67,140.29,140.25,25.65529247]
[1763305413685,0.67,140.29,140.26,0.7]
[1763305413987,104.87,140.3,140.26,0.7]
[1763305414190,104.2,140.3,140.26,0.7]
[1763305414363,0.67,140.29,140.26,0.7]
[1763305414862,0.67,140.29,140.27,7.12910814]
[1763305415990,104.2,140.3,140.25,24.95543671]
[1763305416183,104.2,140.3,140.27,0.7]
[1763305416590,0.67,140.33,140.27,0.7]
[1763305417490,0.67,140.33,140.28,9.78882769]
[1763305417889,0.67,140.33,140.29,0.7]
[1763305418588,111.32521736,140.35,140.29,0.7]
[1763305418801,0.67,140.34,140.29,0.7]
[1763305419995,7.12352186,140.38,140.3,16.91641143]
[1763305420184,0.67,140.37,140.3,57.3865708]
[1763305420409,0.67,140.37,140.32,9.78882769]
[1763305420884,0.67,140.37,140.33,0.7]
[1763305421393,0.67,140.37,140.33,7.82576029]
[1763305422298,0.67,140.37,140.33,7.12576029]
[1763305422492,0.67,140.37,140.34,0.7]
[1763305422710,0.67,140.37,140.33,0.7]
[1763305423382,0.67,140.37,140.34,7.12555223]
[1763305425304,7.79415002,140.37,140.33,7.82598273]
[1763305426203,7.12352186,140.38,140.33,7.82598273]
[1763305426494,0.69,140.36,140.33,7.82598273]
[1763305428004,0.69,140.36,140.3,22.6512]
[1763305428203,0.69,140.36,140.3,10.49882769]
[1763305428792,7.81478298,140.36,140.3,17.62627764]
[1763305429186,0.69,140.35,140.3,17.62627764]
[1763305429804,0.69,140.35,140.31,0.71]
[1763305430103,0.69,140.35,140.3,16.91627764]
[1763305430304,7.81520276,140.35,140.29,17.62675651]
[1763305430805,0.69,140.34,140.29,34.73698603]
[1763305430974,0.69,140.34,140.3,0.71]
[1763305431904,7.81555551,140.34,140.3,0.71]
[1763305432294,0.69,140.33,140.3,0.71]
[1763305432800,0.69,140.33,140.29,9.78882769]
[1763305432993,0.69,140.33,140.3,0.71]
[1763305434602,0.69,140.33,140.3,7.83756315]
[1763305440025,7.81610172,140.33,140.28,22.6512]
[1763305440208,7.81610172,140.33,140.28,29.77976848]
[1763305440389,0.69,140.32,140.28,29.77976848]
[1763305440597,0.69,140.32,140.27,0.71]
[1763305440796,0.69,140.32,140.28,0.71]
[1763305441222,0.69,140.32,140.29,7.1280918]
[1763305441396,0.69,140.32,140.28,7.83850314]
[1763305441896,111.32589916,140.34,140.28,7.83850314]
[1763305442111,0.69,140.33,140.29,0.71]
[1763305442717,0.69,140.33,140.28,7.12850314]
[1763305443225,7.12656784,140.32,140.28,7.12850314]
[1763305443516,7.12656784,140.32,140.28,7.83850314]
[1763305443731,0.69,140.31,140.28,7.83850314]
[1763305446228,0.69,140.31,140.28,0.71]
[1763305446527,0.69,140.31,140.28,7.83851403]
[1763305447115,7.81728721,140.31,140.25,32.44002769]
[1763305447318,7.81728721,140.31,140.25,33.15002769]
[1763305447521,0.69,140.3,140.25,33.15002769]
[1763305447827,0.69,140.3,140.25,32.44002769]
[1763305448131,0.69,140.3,140.25,9.78882769]
[1763305448437,0.69,140.3,140.25,17.6289362]
[1763305448594,0.69,140.3,140.26,0.71]
[1763305448794,7.81785859,140.3,140.25,17.62890935]
[1763305449220,0.69,140.29,140.25,17.62890935]
[1763305449401,0.69,140.29,140.26,0.71]
[1763305449604,104.2,140.33,140.26,0.71]
[1763305449802,0.69,140.3,140.26,0.71]
[1763305450203,0.69,140.3,140.25,0.71]
[1763305450923,7.81793611,140.3,140.25,7.83990741]
[1763305451297,0.69,140.29,140.25,7.83990741]
[1763305451699,0.69,140.29,140.25,7.12990741]
[1763305452124,0.69,140.29,140.25,7.83990741]
[1763305452314,0.69,140.29,140.24,7.13050378]
[1763305452516,0.69,140.29,140.24,7.84050378]
[1763305453011,7.81848734,140.29,140.24,7.84050378]
[1763305453532,0.69,140.28,140.24,7.84050378]
[1763305456524,0.69,140.28,140.25,0.7]
[1763305456828,24.94134935,140.33,140.26,7.12961642]
[1763305457005,5.47092198,140.32,140.26,7.12961642]
[1763305457207,5.47092198,140.32,140.26,7.82961642]
[1763305457408,0.68,140.31,140.26,7.82961642]
[1763305457642,0.68,140.31,140.26,7.12961642]
[1763305458146,0.68,140.31,140.25,7.82999404]
[1763305458842,7.12758374,140.3,140.25,7.82999404]
[1763305459038,12.59815305,140.31,140.25,7.82999404]
[1763305459205,0.68,140.3,140.25,7.82999404]
[1763305459404,5.47092198,140.3,140.25,7.82999404]
[1763305459710,0.68,140.29,140.25,7.82999404]
[1763305460329,0.68,140.29,140.23,7.13077249]
[1763305460536,5.47219674,140.29,140.23,7.13077249]
[1763305460721,0.68,140.28,140.23,7.13077249]
[1763305460926,7.12910814,140.27,140.22,17.62040448]
[1763305461324,0.68,140.26,140.22,17.62040448]
[1763305462362,0.68,140.26,140.21,7.13200964]
[1763305462525,0.68,140.26,140.22,0.7]
[1763305463247,7.81004869,140.26,140.22,0.7]
[1763305463554,7.81004869,140.26,140.21,7.83200964]
[1763305463760,0.68,140.25,140.21,7.83200964]
[1763305464137,0.68,140.25,140.21,0.7]
[1763305464453,7.12932345,140.27,140.2,17.02132576]
[1763305464623,4.78792766,140.27,140.22,0.7]
[1763305464823,0.68,140.26,140.22,0.7]
[1763305465357,7.80997361,140.26,140.22,0.7]
[1763305465739,0.68,140.25,140.2,7.23264339]
[1763305466059,0.68,140.25,140.2,7.93264339]
[1763305466848,7.1306332,140.24,140.2,7.93264339]
[1763305467346,0.68,140.23,140.2,7.93264339]
[1763305467949,7.81114512,140.23,140.2,0.1]
[1763305468333,0.68,140.22,140.2,0.1]
[1763305470063,7.81070358,140.24,140.2,0.8]
[1763305470449,0.68,140.23,140.2,0.8]
[1763305470657,0.68,140.23,140.2,0.1]
[1763305470835,0.68,140.23,140.2,0.8]
[1763305471256,0.68,140.23,140.2,7.93266761]
[1763305471559,0.68,140.23,140.2,7.23266761]
[1763305471764,0.68,140.23,140.2,0.8]
[1763305472261,0.68,140.23,140.2,0.1]
[1763305472832,0.68,140.23,140.2,0.8]
[1763305473045,0.68,140.23,140.2,0.1]
[1763305474732,104.2,140.25,140.2,0.8]
[1763305475062,0.68,140.24,140.2,0.8]
[1763305476575,7.81068361,140.24,140.2,7.93246983]
[1763305476933,0.68,140.23,140.2,7.93246983]
[1763305477574,104.2,140.25,140.2,7.93246983]
[1763305477885,104.2,140.25,140.2,7.23246983]
[1763305478084,104.2,140.25,140.21,0.7]
[1763305478386,104.88,140.25,140.21,0.7]
[1763305479162,7.8092935,140.27,140.21,0.7]
[1763305479370,7.1292935,140.27,140.21,0.7]
[1763305479673,0.68,140.26,140.22,7.13165026]
[1763305480084,0.68,140.26,140.23,0.7]
[1763305480869,104.2,140.28,140.23,0.7]
[1763305481173,0.68,140.27,140.23,0.7]
[1763305481566,0.68,140.27,140.24,7.1306332]
[1763305481993,0.68,140.27,140.24,7.8306332]
[1763305484381,0.68,140.27,140.24,7.1306332]
[1763305485476,0.68,140.27,140.24,7.8306332]
[1763305485674,0.68,140.27,140.23,9.78882769]
[1763305485876,0.68,140.27,140.23,10.48882769]
[1763305486085,0.68,140.27,140.24,7.1306332]
[1763305486896,0.68,140.27,140.23,10.48882769]
[1763305486897,0.68,140.27,140.23,17.61992672]
[1763305489800,0.68,140.27,140.24,0.7]
[1763305491201,5.46632463,140.29,140.25,7.13012477]
[1763305491400,5.46632463,140.29,140.26,0.7]
[1763305491602,104.2,140.3,140.26,0.7]
[1763305491899,104.88,140.3,140.26,0.7]
[1763305492108,104.2,140.3,140.26,0.7]
[1763305492299,0.68,140.29,140.26,0.7]
[1763305494304,0.68,140.29,140.26,7.82916393]
[1763305494798,104.88,140.3,140.27,0.7]
[1763305495000,0.68,140.32,140.27,0.7]
[1763305495202,0.68,140.31,140.27,0.7]
[1763305495374,5.47466302,140.32,140.27,0.7]
[1763305495576,0.68,140.36,140.28,9.78882769]
[1763305496074,0.68,140.36,140.3,9.78882769]
[1763305496277,0.68,140.36,140.31,7.12707576]
[1763305496470,0.68,140.36,140.31,7.82707576]
[1763305497197,7.80462558,140.36,140.31,7.82707576]
[1763305497700,7.80462558,140.36,140.32,0.7]
[1763305497701,0.68,140.36,140.32,0.7]
[1763305497882,0.68,140.35,140.32,0.7]
[1763305498593,0.68,140.35,140.32,7.82656758]
[1763305498985,0.68,140.35,140.32,0.7]
[1763305499305,0.68,140.35,140.32,7.82640278]
[1763305499801,0.68,140.35,140.31,7.12703183]
[1763305499980,7.80515684,140.35,140.28,9.78882769]
[1763305500183,0.68,140.35,140.31,0.7]
[1763305500383,0.68,140.35,140.31,7.82663292]
[1763305500903,7.80507014,140.35,140.31,0.7]
[1763305501077,7.80507014,140.35,140.28,7.12851199]
[1763305501274,0.68,140.34,140.28,16.91733968]
[1763305501478,5.46269766,140.34,140.28,9.78882769]
[1763305501908,0.68,140.33,140.28,9.78882769]
[1763305502105,0.68,140.33,140.29,0.7]
[1763305502313,0.68,140.37,140.3,9.78882769]
[1763305502519,0.68,140.37,140.31,24.94476516]
[1763305502716,0.68,140.37,140.31,25.64476516]
[1763305503298,7.80404161,140.37,140.31,25.64476516]
[1763305503595,7.80404161,140.37,140.31,7.82707576]
[1763305503792,0.68,140.36,140.31,7.82707576]
[1763305504424,7.12504453,140.35,140.29,7.8280918]
[1763305504589,0.68,140.34,140.29,7.8280918]
[1763305506025,7.80576914,140.34,140.25,18.52428186]
[1763305506193,7.80576914,140.34,140.26,7.12961642]
[1763305506389,23.3312,140.33,140.25,7.82993509]
[1763305506589,28.10754183,140.32,140.23,18.52739974]
[1763305506823,4.77634183,140.31,140.22,0.7]
[1763305506998,5.45634183,140.31,140.22,0.7]
[1763305507308,0.68,140.3,140.22,0.7]
[1763305507914,7.1280918,140.29,140.22,7.83165026]
[1763305508097,0.68,140.28,140.22,24.96077591]
[1763305508298,0.68,140.28,140.23,0.7]
[1763305509008,7.12765775,140.3,140.23,0.7]
[1763305509009,0.68,140.3,140.24,9.78882769]
[1763305509401,0.68,140.3,140.25,0.7]
[1763305510028,0.68,140.3,140.26,7.12961642]
[1763305510490,0.68,140.3,140.26,7.82961642]
[1763305510694,7.80766558,140.3,140.22,18.5289773]
[1763305510898,7.80766558,140.3,140.23,9.78882769]
[1763305511105,0.68,140.29,140.23,9.78882769]
[1763305511292,0.68,140.29,140.23,10.48882769]
[1763305511518,0.68,140.29,140.23,35.44766881]
[1763305512315,0.68,140.29,140.24,0.7]
[1763305512495,7.80814629,140.29,140.24,0.7]
[1763305512891,7.80814629,140.29,140.23,34.74766881]
[1763305513201,0.68,140.28,140.23,35.44766881]
[1763305513619,0.68,140.28,140.24,0.68]
[1763305514232,0.68,140.28,140.25,7.13012477]
[1763305515432,111.3277187,140.3,140.25,7.13012477]
[1763305515644,0.68,140.29,140.26,0.7]
[1763305516115,0.68,140.29,140.24,7.83044198]
[1763305517353,104.2,140.3,140.26,7.12961642]
[1763305517638,104.88,140.3,140.26,25.65365748]
[1763305518217,104.88,140.3,140.26,7.82961642]
[1763305518520,104.88,140.3,140.25,9.78882769]
[1763305518521,0.68,140.29,140.25,7.13006578]
[1763305519717,0.68,140.29,140.25,7.83006578]
[1763305519913,0.68,140.29,140.25,25.65537772]
[1763305520129,104.2,140.3,140.26,0.7]
[1763305520444,104.88,140.3,140.26,0.7]
[1763305521945,104.88,140.3,140.27,7.12910814]
[1763305522641,0.68,140.29,140.27,7.12910814]
[1763305523278,0.68,140.29,140.24,17.61946089]
[1763305523425,7.80812333,140.29,140.23,29.78215654]
[1763305523951,104.88,140.28,140.22,7.83158391]
[1763305524336,0.68,140.27,140.22,7.83158391]
[1763305525023,7.80925834,140.27,140.22,7.83158391]
[1763305525421,0.68,140.26,140.22,7.83158391]
[1763305528153,7.8096497,140.26,140.21,7.13212671]
[1763305528337,7.8096497,140.26,140.2,29.88372891]
[1763305528540,0.68,140.25,140.2,29.88372891]
[1763305528933,0.68,140.25,140.2,30.58372891]
[1763305529451,7.81028993,140.25,140.2,7.93252891]
[1763305529826,0.68,140.24,140.2,7.23252891]
[1763305530235,7.12978073,140.26,140.21,0.7]
[1763305530434,0.68,140.25,140.21,0.7]
[1763305530754,11.92005364,140.27,140.21,0.7]
[1763305531052,0.68,140.26,140.21,0.7]
[1763305531729,0.68,140.26,140.22,7.13165026]
[1763305532428,0.68,140.26,140.22,7.83165026]
[1763305532929,0.68,140.26,140.2,0.1]
[1763305533242,25.63368176,140.26,140.2,0.1]
[1763305533636,0.68,140.25,140.2,0.1]
[1763305534157,7.1306332,140.24,140.2,7.23264039]
[1763305534540,0.68,140.23,140.2,7.23264039]
[1763305537433,0.68,140.23,140.2,7.93264039]
[1763305539234,0.68,140.26,140.21,0.7]
[1763305539443,104.88,140.27,140.22,9.78882769]
[1763305539846,104.88,140.27,140.23,0.7]
[1763305540435,104.2,140.27,140.24,7.1306332]
[1763305540736,0.68,140.26,140.24,7.1306332]
[1763305540938,104.2,140.27,140.24,7.1306332]
[1763305541135,104.88,140.27,140.24,0.7]
[1763305542648,104.88,140.27,140.24,7.83012586]
[1763305543766,29.77884589,140.3,140.24,7.13012586]
[1763305543946,0.67,140.29,140.25,0.67]
[1763305544338,12.53837699,140.36,140.28,9.78882769]
[1763305544537,8.00328433,140.38,140.29,7.1280918]
[1763305544538,5.45527479,140.35,140.29,7.1280918]
[1763305544737,0.67,140.35,140.3,10.45882769]
[1763305546652,0.67,140.35,140.31,7.79707576]
[1763305550163,7.79513711,140.35,140.31,7.12707576]
[1763305550378,7.79513711,140.35,140.28,16.91742248]
[1763305550684,0.67,140.34,140.28,17.58742248]
[1763305550867,0.67,140.34,140.28,16.91742248]
[1763305551045,5.45589209,140.34,140.27,7.12908755]
[1763305551566,0.67,140.33,140.27,7.12908755]
[1763305552073,7.12656784,140.32,140.27,7.12908755]
[1763305552584,0.67,140.31,140.27,7.12908755]
[1763305552887,0.67,140.31,140.26,16.91833494]
[1763305553081,0.67,140.31,140.26,7.79950725]
[1763305554275,7.79725725,140.31,140.26,7.79950725]
[1763305554870,7.79725725,140.31,140.26,7.12950725]
[1763305555090,0.67,140.3,140.26,7.12950725]
[1763305555588,0.67,140.3,140.2,0.1]
[1763305555589,22.6512,140.28,140.2,0.1]
[1763305555796,4.78578427,140.27,140.2,0.1]
[1763305555964,5.45578427,140.27,140.2,0.1]
[1763305556168,0.67,140.26,140.2,7.90259723]
[1763305556589,0.67,140.26,140.21,0.67]
[1763305556890,29.77992735,140.28,140.21,0.67]
[1763305557090,0.67,140.27,140.21,0.67]
[1763305558380,0.67,140.27,140.22,7.13165026]
[1763305558993,0.67,140.27,140.23,0.67]
[1763305559580,0.67,140.27,140.23,7.80081124]
[1763305560279,4.78626701,140.28,140.23,7.80081124]
[1763305560475,0.67,140.3,140.24,0.67]
[1763305560867,0.67,140.3,140.25,9.78882769]
[1763305561499,0.67,140.3,140.26,7.79948496]
[1763305562369,0.67,140.36,140.28,9.78882769]
[1763305562570,0.67,140.36,140.3,9.78882769]
[1763305562790,23.79041276,140.39,140.32,9.78882769]